bitfinex/quotes_ETHUSD_20250705
["timestamp","ask_amount","ask_price","bid_price","bid_amount"]
[1751724499215,0.7760118,2519.9,2519.8,0.002]
[1751724499909,0.77605937,2519.9,2519.8,0.002]
[1751724502813,0.40540694,2519.9,2519.8,0.002]
[1751724503003,0.77616305,2519.9,2519.8,0.002]
[1751724503623,0.77628985,2519.9,2519.8,0.002]
[1751724504139,0.77628985,2519.9,2519.8,3.97056893]
[1751724504497,0.77628985,2519.9,2519.8,0.002]
[1751724505630,0.77628985,2519.9,2519.8,3.97056893]
[1751724506524,0.77628985,2519.9,2519.8,0.002]
[1751724507811,0.77628985,2519.9,2519.8,3.97056893]
[1751724509534,0.77647809,2519.9,2519.8,3.97056893]
[1751724510431,0.77647809,2519.9,2519.8,0.002]
[1751724511336,0.81612775,2519.9,2519.8,0.002]
[1751724512140,0.81616149,2519.9,2519.8,0.002]
[1751724512634,0.77651183,2519.9,2519.8,0.002]
[1751724521616,6.07010777,2519.9,2519.8,0.002]
[1751724522044,6.10975743,2519.9,2519.8,0.002]
[1751724523954,18.03975743,2519.9,2519.8,0.002]
[1751724524263,18.00010777,2519.9,2519.8,0.002]
[1751724524418,18.55010777,2519.9,2519.8,0.002]
[1751724528253,26.52310777,2519.9,2519.8,0.002]
[1751724535669,26.52225944,2519.9,2519.8,0.002]
[1751724546486,26.52248048,2519.9,2519.8,0.002]
[1751724549379,26.52273965,2519.9,2519.8,0.002]
[1751724550091,5.33778394,2519.6,2519.5,0.002]
[1751724550270,5.33778394,2519.6,2519.1,0.002]
[1751724550271,3.96951413,2519.2,2519.1,0.002]
[1751724550470,34.4769567,2519.2,2519.1,1e-08]
[1751724550682,15.33888689,2518.9,2518.8,1e-08]
[1751724550995,34.03070731,2518.9,2518.8,1e-08]
[1751724551181,34.03070731,2518.9,2518.3,0.0435421]
[1751724551182,14.78967509,2518.4,2518.3,0.0435421]
[1751724551380,34.446568,2518.4,2518.3,0.0435421]
[1751724551586,3.97124816,2518.1,2518.0,0.002]
[1751724551782,31.75137523,2518.1,2518.0,0.002]
[1751724551964,31.71172557,2518.1,2518.0,0.002]
[1751724552373,33.64172557,2518.1,2518.0,0.002]
[1751724554598,29.67047741,2518.1,2518.0,0.002]
[1751724554801,33.64372557,2518.1,2518.0,0.002]
[1751724555012,34.96182557,2518.1,2518.0,0.002]
[1751724558675,25.04282557,2518.1,2518.0,0.002]
[1751724558875,34.96382557,2518.1,2518.0,0.002]
[1751724561078,34.96073229,2518.1,2518.0,0.002]
[1751724571091,35.16795052,2518.1,2518.0,0.002]
[1751724575822,35.16872548,2518.1,2518.0,0.002]
[1751724577487,43.01872548,2518.1,2518.0,0.002]
[1751724578099,43.01872548,2518.1,2518.0,1e-08]
[1751724578414,15.29582134,2517.8,2517.7,0.0435421]
[1751724578629,34.42397736,2517.8,2517.7,0.0435421]
[1751724583602,34.4263382,2517.8,2517.7,1e-08]
[1751724583809,15.28117909,2517.7,2517.6,1e-08]
[1751724584139,31.49295838,2517.7,2517.6,1e-08]
[1751724584432,14.52251022,2517.3,2517.2,0.0535421]
[1751724584620,33.64444565,2517.3,2517.2,0.0535421]
[1751724584821,33.64436516,2517.3,2517.2,0.0535421]
[1751724590620,33.64436516,2517.3,2517.0,0.01]
[1751724590621,0.7593,2517.1,2517.0,0.01]
[1751724590826,18.73223664,2517.1,2517.0,0.01]
[1751724591021,18.69258698,2517.1,2517.0,0.01]
[1751724591424,4.52329942,2516.8,2516.6,0.8038]
[1751724591629,22.92790855,2516.8,2516.6,0.8038]
[1751724591819,22.88825889,2516.8,2516.6,0.8038]
[1751724592034,23.44684339,2516.8,2516.6,0.8038]
[1751724593339,23.44684339,2516.8,2516.6,0.64003479]
[1751724593340,4.1718573,2516.7,2516.6,0.64003479]
[1751724593516,3.97394068,2516.4,2516.2,0.0435421]
[1751724593730,4.38369807,2516.3,2516.2,0.0435421]
[1751724594057,0.40960913,2516.3,2516.2,0.0435421]
[1751724595655,0.36995947,2516.3,2516.2,4.01778898]
[1751724596330,0.36995947,2516.3,2516.2,4.82978898]
[1751724599129,0.36995947,2516.3,2516.2,0.8555421]
[1751724599762,0.36995947,2516.3,2516.2,4.82978898]
[1751724600863,0.36995947,2516.3,2516.2,0.8555421]
[1751724601059,0.36995947,2516.3,2516.2,4.82978898]
[1751724601564,0.36933798,2516.3,2516.2,4.82978898]
[1751724603177,0.36933798,2516.3,2516.2,0.8555421]
[1751724604799,0.36933798,2516.3,2516.2,4.82978898]
[1751724612999,0.36933798,2516.3,2516.2,0.8555421]
[1751724614200,0.36933798,2516.3,2516.2,4.82978898]
[1751724616101,0.36933798,2516.3,2516.2,5.73204774]
[1751724616312,0.40569721,2516.4,2516.3,4.78158894]
[1751724616517,0.77601754,2516.4,2516.3,4.78158894]
[1751724616909,0.77601644,2516.4,2516.3,4.78158894]
[1751724618616,0.37031923,2516.4,2516.3,4.78158894]
[1751724618819,0.37031923,2516.4,2516.3,5.75275261]
[1751724619325,0.1984,2516.6,2516.3,5.75275261]
[1751724619526,0.3704354,2516.5,2516.4,3.97393101]
[1751724621505,0.3704354,2516.5,2516.4,4.74613101]
[1751724622504,0.3704354,2516.5,2516.4,4.94453101]
[1751724622699,0.3704354,2516.5,2516.4,6.64084526]
[1751724624611,0.3704354,2516.5,2516.4,0.9706]
[1751724624813,0.3704354,2516.5,2516.4,4.74613101]
[1751724625021,0.3704354,2516.5,2516.4,0.7722]
[1751724625415,0.41008506,2516.5,2516.2,12.83292192]
[1751724625612,0.3704354,2516.4,2516.2,12.83292192]
[1751724625802,0.3704354,2516.3,2516.2,12.83292192]
[1751724627444,0.3704354,2516.3,2516.2,14.53548869]
[1751724631333,0.1984,2516.5,2516.3,3.97394736]
[1751724631533,0.37027738,2516.4,2516.3,3.97394736]
[1751724632443,0.37027738,2516.4,2516.3,7.998]
[1751724632734,0.37027738,2516.4,2516.3,11.97208894]
[1751724633103,0.37027738,2516.4,2516.3,7.998]
[1751724633650,0.37027738,2516.4,2516.2,0.8587421]
[1751724633856,0.3702661,2516.3,2516.2,0.8587421]
[1751724634049,0.3702661,2516.3,2516.2,8.8557421]
[1751724634446,0.3702661,2516.3,2516.2,12.82998898]
[1751724634651,0.3702661,2516.3,2516.2,8.0405421]
[1751724634849,0.5686661,2516.3,2516.2,8.0405421]
[1751724635150,0.60831576,2516.3,2516.2,8.0405421]
[1751724635351,0.5686661,2516.3,2516.2,8.0405421]
[1751724636056,0.5686661,2516.3,2516.2,0.0435421]
[1751724641666,0.60831576,2516.3,2516.2,0.0435421]
[1751724642494,0.5686661,2516.3,2516.2,0.0435421]
[1751724644082,0.1984,2516.3,2516.2,0.0435421]
[1751724645279,0.56863412,2516.3,2516.2,0.0435421]
[1751724645482,0.1984,2516.3,2516.2,4.01778898]
[1751724645878,0.1984,2516.3,2516.2,0.0435421]
[1751724646060,0.56864664,2516.3,2516.2,0.0435421]
[1751724646992,0.1984,2516.3,2516.2,0.0435421]
[1751724647596,0.56863487,2516.3,2516.2,0.0435421]
[1751724648089,4.58237347,2516.3,2516.2,0.0435421]
[1751724648301,1.56724434,2516.3,2516.2,0.0435421]
[1751724649494,1.56721278,2516.3,2516.2,0.0435421]
[1751724649799,5.54130172,2516.3,2516.2,0.0435421]
[1751724650021,16.90580172,2516.3,2516.2,0.0435421]
[1751724650165,16.86615206,2516.3,2516.2,0.0435421]
[1751724652167,16.31615206,2516.3,2516.2,0.0435421]
[1751724652361,26.25932401,2516.3,2516.2,0.0435421]
[1751724657763,0.36937526,2516.3,2516.2,0.0435421]
[1751724658258,0.36937526,2516.3,2516.2,4.01778898]
[1751724660166,11.19887526,2516.3,2516.2,0.0435421]
[1751724660334,15.1729642,2516.3,2516.2,0.0435421]
[1751724660535,18.79290028,2516.3,2516.2,0.0435421]
[1751724660957,28.76690028,2516.3,2516.2,0.0435421]
[1751724661159,18.79290028,2516.3,2516.2,0.0435421]
[1751724661365,28.76690028,2516.3,2516.2,0.0435421]
[1751724662761,29.31750028,2516.3,2516.2,0.0435421]
[1751724665966,28.94812502,2516.3,2516.2,0.0435421]
[1751724666169,29.31718717,2516.3,2516.2,0.0435421]
[1751724666873,29.31721303,2516.3,2516.2,0.0435421]
[1751724667550,27.95311303,2516.3,2516.2,0.0435421]
[1751724667864,0.36908801,2516.3,2516.2,13.62554512]
[1751724668443,0.36908801,2516.3,2516.2,4.80138898]
[1751724668644,0.001,2516.6,2516.4,3.97384306]
[1751724668845,0.001,2516.6,2516.5,3.97377309]
[1751724669066,0.37026694,2516.6,2516.5,3.97377309]
[1751724669449,0.37026694,2516.6,2516.3,3.97401256]
[1751724669659,0.4089166,2516.5,2516.2,0.8271421]
[1751724669872,0.03964966,2516.5,2516.2,0.8271421]
[1751724670067,0.001,2516.6,2516.3,3.97400907]
[1751724670272,0.36917444,2516.5,2516.3,3.97400907]
[1751724670467,0.001,2516.6,2516.3,3.97400907]
[1751724670769,0.36909727,2516.5,2516.3,3.97400907]
[1751724671071,0.001,2516.6,2516.3,3.97400907]
[1751724671277,0.36909334,2516.5,2516.3,3.97400907]
[1751724671462,0.001,2516.6,2516.3,3.97400907]
[1751724671662,0.36903749,2516.5,2516.3,3.97400907]
[1751724671862,0.001,2516.6,2516.3,3.97400907]
[1751724672066,0.36903625,2516.5,2516.3,3.97400907]
[1751724672371,0.001,2516.6,2516.3,3.97400907]
[1751724672576,0.36897821,2516.5,2516.3,3.97400907]
[1751724673486,0.36897821,2516.5,2516.4,3.97393101]
[1751724674167,0.001,2516.6,2516.4,3.97393101]
[1751724674366,0.36984904,2516.6,2516.3,3.97400511]
[1751724674582,0.03964966,2516.5,2516.3,3.97400511]
[1751724675095,0.001,2516.6,2516.3,3.97400511]
[1751724675269,0.03964966,2516.5,2516.3,3.97400511]
[1751724675669,0.001,2516.6,2516.3,3.97400511]
[1751724675966,0.03964966,2516.5,2516.3,3.97400511]
[1751724676393,0.001,2516.6,2516.3,3.97400511]
[1751724676690,0.03964966,2516.5,2516.3,3.97400511]
[1751724677189,0.001,2516.6,2516.3,3.97400511]
[1751724677488,0.03964966,2516.5,2516.3,3.97400511]
[1751724677861,0.1984,2516.4,2516.3,3.97400511]
[1751724679290,0.1984,2516.4,2516.3,4.8525442]
[1751724680294,0.001,2516.6,2516.5,3.97377309]
[1751724680491,0.1994,2516.6,2516.5,3.97377309]
[1751724680991,0.56798345,2516.6,2516.5,3.97377309]
[1751724681194,0.56798345,2516.6,2516.5,4.75717309]
[1751724681392,0.36958345,2516.6,2516.5,5.7181346]
[1751724681695,0.001,2516.6,2516.5,5.9165346]
[1751724691987,0.001,2516.6,2516.5,4.95557309]
[1751724692804,0.36986103,2516.6,2516.5,4.95557309]
[1751724692980,0.36986103,2516.6,2516.3,3.9740439]
[1751724693174,3.97469136,2516.6,2516.3,0.1984]
[1751724693506,0.1984,2516.4,2516.2,0.0435421]
[1751724695304,0.3691894,2516.3,2516.2,0.0435421]
[1751724695900,0.3692232,2516.3,2516.2,4.01778898]
[1751724698211,0.3692232,2516.3,2516.2,4.96048946]
[1751724698381,0.3692232,2516.3,2516.2,5.96918946]
[1751724701330,0.3692232,2516.3,2516.2,14.7933456]
[1751724701509,0.001,2516.6,2516.5,3.97377309]
[1751724701715,0.3712215,2516.6,2516.5,4.78407309]
[1751724703519,0.37120585,2516.6,2516.5,4.78407309]
[1751724704520,0.37120585,2516.6,2516.5,4.73407309]
[1751724704719,0.3711972,2516.6,2516.5,4.73407309]
[1751724707015,0.3711972,2516.6,2516.5,4.77381082]
[1751724707199,0.3711972,2516.6,2516.5,5.82708452]
[1751724707517,0.37118961,2516.6,2516.5,5.82708452]
[1751724710410,0.37118961,2516.6,2516.5,4.93247309]
[1751724710812,0.37117861,2516.6,2516.5,4.93247309]
[1751724711111,0.37117754,2516.6,2516.5,4.93247309]
[1751724715533,0.37117754,2516.6,2516.5,4.97221082]
[1751724715725,0.37117754,2516.6,2516.5,13.79636696]
[1751724716028,0.37117754,2516.6,2516.5,15.53365628]
[1751724719331,0.37112323,2516.6,2516.5,15.53365628]
[1751724722524,0.001,2516.6,2516.5,15.53365628]
[1751724723718,0.001,2516.6,2516.5,14.75350014]
[1751724723719,0.37103076,2516.6,2516.5,14.75350014]
[1751724723917,0.37103076,2516.6,2516.5,12.97647309]
[1751724724234,0.37103076,2516.6,2516.5,12.16617309]
[1751724724806,0.37103553,2516.6,2516.5,12.16617309]
[1751724727142,0.37103553,2516.6,2516.5,20.99032923]
[1751724727317,0.001,2516.6,2516.5,21.74652923]
[1751724727519,0.001,2516.6,2516.5,24.31857251]
[1751724734454,1e-08,2516.6,2516.5,34.86857251]
[1751724736951,1e-08,2516.6,2516.5,27.44741637]
[1751724737263,1e-08,2516.6,2516.5,19.40941637]
[1751724737431,1e-08,2516.6,2516.5,26.69121637]
[1751724741419,1e-08,2516.6,2516.5,27.52011637]
[1751724743890,1e-08,2516.6,2516.5,28.07011637]
[1751724750872,0.001,2517.5,2517.2,3.97266804]
[1751724751044,0.001,2517.5,2517.4,3.97235242]
[1751724751244,0.37114894,2517.5,2517.4,3.97235242]
[1751724752656,0.37114894,2517.5,2517.4,4.01207594]
[1751724752846,0.37114894,2517.5,2517.4,3.97235242]
[1751724753497,0.37114894,2517.5,2517.4,14.81149882]
[1751724753660,0.37114894,2517.5,2517.4,15.00989882]
[1751724754142,0.001,2517.5,2517.4,15.00989882]
[1751724758267,0.001,2517.5,2517.4,15.55989882]
[1751724759153,0.36985855,2518.0,2517.9,3.9715636]
[1751724759485,0.36985855,2518.0,2517.9,12.0025636]
[1751724759681,0.36985855,2518.0,2517.9,12.2009636]
[1751724760658,0.36985855,2518.0,2517.9,12.91785031]
[1751724761174,1.0505421,2518.3,2518.1,3.97124816]
[1751724761484,0.36966135,2518.2,2518.1,12.00124816]
[1751724762988,0.3696388,2518.2,2518.1,12.00124816]
[1751724763689,0.3696388,2518.2,2518.1,12.19964816]
[1751724766293,0.8521421,2518.3,2518.2,3.97109046]
[1751724766599,1.22158035,2518.3,2518.2,3.97109046]
[1751724768089,1.22156184,2518.3,2518.1,12.19956664]
[1751724768291,0.8521421,2518.3,2518.2,3.97109046]
[1751724768597,1.22154995,2518.3,2518.2,3.97109046]
[1751724770696,1.22154995,2518.3,2518.1,12.19957549]
[1751724770868,0.8521421,2518.3,2518.1,12.19957549]
[1751724771404,0.8521421,2518.3,2518.2,3.97109046]
[1751724771570,1.2216019,2518.3,2518.2,3.97109046]
[1751724772269,1.22164469,2518.3,2518.2,3.97109046]
[1751724774020,1.22164469,2518.3,2518.1,12.19956752]
[1751724774218,0.36950259,2518.2,2518.1,12.19956752]
[1751724775713,0.36950259,2518.2,2518.1,4.16956752]
[1751724776093,0.36950259,2518.2,2518.1,12.18956752]
[1751724778239,0.8521421,2518.3,2518.1,12.18956752]
[1751724778528,0.37003636,2518.2,2518.1,0.1984]
[1751724778688,0.37002763,2518.2,2518.0,8.018]
[1751724778888,0.37002763,2518.1,2518.0,8.018]
[1751724779090,1.14382763,2518.1,2517.9,0.1984]
[1751724779324,0.37002763,2518.0,2517.9,8.2174]
[1751724780318,0.37002763,2518.0,2517.9,0.1984]
[1751724780519,0.37002763,2518.0,2517.9,8.019]
[1751724783327,0.37002763,2518.0,2517.9,3.9715636]
[1751724783532,0.37002763,2518.0,2517.9,11.9895636]
[1751724785923,0.37002763,2518.0,2517.9,3.9715636]
[1751724786127,0.37002763,2518.0,2517.9,11.9885636]
[1751724790036,0.37002763,2518.0,2517.9,13.68671954]
[1751724790337,0.37002763,2518.0,2517.9,13.88511954]
[1751724794543,0.0445421,2518.3,2518.2,3.97109046]
[1751724794738,0.41559333,2518.3,2518.2,11.98609046]
[1751724797027,0.41559333,2518.3,2518.1,8.014]
[1751724797028,0.7693,2518.2,2518.1,8.014]
[1751724797213,1.14035123,2518.2,2518.1,8.014]
[1751724798040,0.7693,2518.2,2517.8,0.1984]
[1751724798244,0.56943291,2518.1,2517.8,3.97172134]
[1751724798439,0.37103291,2518.0,2517.9,8.022]
[1751724798617,0.37103291,2518.0,2517.8,3.97172134]
[1751724798817,0.37103291,2517.9,2517.8,3.97172134]
[1751724799119,0.37103291,2517.9,2517.8,11.99472134]
[1751724799515,0.37103291,2517.9,2517.8,3.97172134]
[1751724799745,0.37103291,2517.9,2517.8,11.99472134]
[1751724805648,0.37103291,2517.9,2517.8,13.61121889]
[1751724806057,0.37103291,2517.9,2517.8,13.80961889]
[1751724807352,0.2429421,2518.3,2518.1,3.97124816]
[1751724807553,0.0445421,2518.3,2518.2,12.22920136]
[1751724807776,0.41557768,2518.3,2518.2,12.18949046]
[1751724807923,0.41557768,2518.3,2518.2,13.80556432]
[1751724810221,0.41557768,2518.3,2518.2,9.83447386]
[1751724810427,0.41557768,2518.3,2518.2,8.021]
[1751724810730,0.41557768,2518.3,2518.2,11.99209046]
[1751724821143,0.41516628,2518.3,2518.2,11.99209046]
[1751724822059,0.4151504,2518.3,2518.2,11.99209046]
[1751724826184,0.4151504,2518.3,2518.1,3.97111414]
[1751724826390,0.4151504,2518.3,2518.2,8.013]
[1751724826391,0.8331421,2518.3,2518.2,8.013]
[1751724826669,1.20368746,2518.3,2518.2,8.013]
[1751724827667,1.20368746,2518.3,2518.1,3.97123293]
[1751724827972,1.58952777,2518.3,2518.2,8.012]
[1751724828152,1.96002424,2518.3,2518.2,8.012]
[1751724828349,1.40203857,2518.3,2518.2,3.97109046]
[1751724828671,1.20363857,2518.3,2518.2,3.97109046]
[1751724828871,1.20363857,2518.3,2518.1,8.012]
[1751724829085,0.0445421,2518.3,2518.2,3.97109046]
[1751724829255,0.41507353,2518.3,2518.2,3.97109046]
[1751724829957,0.41507353,2518.3,2518.2,5.70452239]
[1751724830289,0.0445421,2518.3,2518.2,5.86321149]
[1751724831186,0.41510577,2518.3,2518.2,5.86321149]
[1751724831390,0.0445421,2518.3,2518.2,5.86321149]
[1751724831961,0.41503276,2518.3,2518.2,5.86321149]
[1751724832185,0.4150349,2518.3,2518.2,5.86321149]
[1751724832685,0.0445421,2518.3,2518.2,5.86321149]
[1751724833293,0.41506936,2518.3,2518.2,5.86321149]
[1751724836695,0.0445421,2518.3,2518.2,5.86321149]
[1751724836901,0.0445421,2518.3,2518.2,5.90292239]
[1751724836902,0.41526291,2518.3,2518.2,5.90292239]
[1751724837200,0.41531855,2518.3,2518.2,5.86321149]
[1751724838296,0.0445421,2518.3,2518.2,5.86321149]
[1751724838502,0.0445421,2518.3,2518.2,5.90292239]
[1751724843302,0.0445421,2518.3,2518.2,6.64891149]
[1751724845507,1e-08,2518.3,2518.2,17.23862239]
[1751724845707,1e-08,2518.3,2518.2,17.19891149]
[1751724845893,1e-08,2518.3,2518.2,19.14691149]
[1751724849505,1e-08,2518.3,2518.2,18.99691149]
[1751724851099,1e-08,2518.3,2518.2,27.82106763]
[1751724877852,1e-08,2518.3,2518.2,25.42196067]
[1751724882190,1e-08,2518.3,2518.2,23.47396067]
[1751724882396,1e-08,2518.3,2518.2,32.63126067]
[1751724883788,1e-08,2518.3,2518.2,26.20621149]
[1751724885085,1e-08,2518.3,2518.2,16.26321149]
[1751724885294,1e-08,2518.3,2518.2,26.20621149]
[1751724886560,1e-08,2518.3,2518.2,27.03041149]
[1751724889896,1e-08,2518.3,2518.2,17.08741149]
[1751724890094,1e-08,2518.3,2518.2,27.03041149]
[1751724898801,1e-08,2518.3,2518.2,16.26321149]
[1751724899001,1e-08,2518.3,2518.2,24.26321149]
[1751724902108,1e-08,2518.3,2518.2,25.65521149]
[1751724902303,0.75080001,2518.3,2518.2,14.01949046]
[1751724902511,0.75080001,2518.3,2518.2,22.01949046]
[1751724903610,1e-08,2518.3,2518.2,22.01949046]
[1751724903910,1e-08,2518.3,2518.2,22.56949046]
[1751724904111,1e-08,2518.3,2518.2,25.49527149]
[1751724913430,1e-08,2518.3,2518.2,27.43727149]
[1751724917133,1e-08,2518.3,2518.2,25.49527149]
[1751724917307,1e-08,2518.3,2518.2,17.49527149]
[1751724917503,0.78420001,2518.3,2518.2,25.49527149]
[1751724917707,0.78420001,2518.3,2518.2,24.94527149]
[1751724918119,0.78420001,2518.3,2518.2,25.49527149]
[1751724918727,0.78420001,2518.3,2518.2,24.94527149]
[1751724919096,0.78420001,2518.3,2518.2,16.94527149]
[1751724919297,0.78420001,2518.3,2518.2,24.94527149]
[1751724924741,0.78420001,2518.3,2518.2,16.94527149]
[1751724924946,0.78420001,2518.3,2518.2,14.01949046]
[1751724925306,0.78420001,2518.3,2518.2,22.01949046]
[1751724926424,0.78420001,2518.3,2518.2,14.01949046]
[1751724926636,0.78420001,2518.3,2518.2,22.01949046]
[1751724929240,0.78520001,2518.3,2518.2,22.01949046]
[1751724931217,0.78520001,2518.3,2518.2,22.02049046]
[1751724934054,0.00100001,2518.3,2518.2,22.02049046]
[1751724938249,0.00100001,2518.3,2518.2,24.61986149]
[1751724947266,0.00100001,2518.3,2518.2,25.16986149]
[1751724947433,0.00100001,2518.3,2518.2,25.96796149]
[1751724956908,0.00100001,2518.3,2518.2,25.16986149]
[1751724957722,0.00100001,2518.3,2518.2,17.16886149]
[1751724957933,0.00100001,2518.3,2518.2,25.16886149]
[1751724960311,0.00100001,2518.3,2518.2,25.96106149]
[1751724992168,1e-08,2518.3,2518.2,25.96106149]
[1751724996434,0.00100001,2518.3,2518.2,25.96106149]
[1751724998271,1e-08,2518.3,2518.2,32.38858264]
[1751725015111,1e-08,2518.3,2518.2,24.61486149]
[1751725025925,1e-08,2518.3,2518.2,16.61886149]
[1751725026112,1e-08,2518.3,2518.2,24.61386149]
[1751725039570,1e-08,2518.3,2518.2,25.99256149]
[1751725039871,1e-08,2518.8,2518.7,3.97030213]
[1751725040035,1e-08,2518.8,2518.7,29.73589682]
[1751725040379,0.8547421,2519.3,2518.7,29.73589682]
[1751725040380,0.8547421,2519.3,2519.1,3.9696717]
[1751725040537,0.8547421,2519.3,2519.1,12.1620717]
[1751725040930,0.0435421,2519.3,2519.1,22.1620717]
[1751725041251,0.0435421,2519.3,2519.1,32.39553246]
[1751725041457,0.0435421,2519.3,2519.1,25.96801131]
[1751725046571,0.7961421,2519.3,2519.1,22.1620717]
[1751725046954,0.7961421,2519.3,2519.1,22.1610717]
[1751725049570,0.0435421,2519.3,2519.1,22.1610717]
[1751725056086,0.0435421,2519.3,2519.1,14.1680717]
[1751725056285,0.8504,2519.2,2519.1,22.1590717]
[1751725061910,0.02,2519.2,2519.1,22.1590717]
[1751725063196,0.02,2519.2,2519.1,24.84717919]
[1751725065910,0.0435421,2519.3,2519.2,14.51951413]
[1751725069193,1e-08,2519.3,2519.2,14.51951413]
[1751725071230,1e-08,2519.3,2519.2,15.33151413]
[1751725072219,1e-08,2519.3,2519.2,14.78151413]
[1751725072420,1e-08,2519.3,2519.2,19.18040661]
[1751725075931,1e-08,2519.3,2519.2,18.63040661]
[1751725076130,0.0435421,2519.8,2519.7,14.51872643]
[1751725076131,1e-08,2519.8,2519.7,14.51872643]
[1751725076332,1e-08,2519.8,2519.7,25.27542643]
[1751725076536,1e-08,2519.8,2519.7,28.40499189]
[1751725078210,0.001,2520.1,2520.0,15.33105396]
[1751725078211,1e-08,2520.1,2520.0,15.33105396]
[1751725078410,1e-08,2520.1,2520.0,23.51745396]
[1751725078716,0.02,2520.7,2520.6,3.96730937]
[1751725078930,0.02,2520.7,2520.6,12.9463846]
[1751725080523,0.02,2520.9,2520.6,12.9463846]
[1751725080524,0.02,2520.9,2520.8,11.3628]
[1751725080729,0.02,2520.9,2520.8,23.3177946]
[1751725080913,0.02,2520.9,2520.8,15.3297946]
[1751725081114,0.02,2520.9,2520.8,21.9539946]
[1751725081421,0.02,2520.9,2520.8,22.89385028]
[1751725090463,0.02,2520.9,2520.8,23.09145028]
[1751725093455,0.02,2520.9,2520.8,22.1515946]
[1751725095361,0.02,2520.9,2520.8,14.9932946]
[1751725095529,0.02,2520.9,2520.8,22.1495946]
[1751725095728,0.02,2520.9,2520.8,22.6995946]
[1751725098861,0.02,2520.9,2520.8,22.7005946]
[1751725099367,0.02,2520.9,2520.8,25.72328678]
[1751725100368,0.02,2520.9,2520.8,26.50498678]
[1751725100770,1e-08,2520.9,2520.8,26.50498678]
[1751725103357,1e-08,2520.9,2520.8,28.43998678]
[1751725107291,1e-08,2520.9,2520.8,28.43898678]
[1751725112709,1e-08,2520.9,2520.8,18.51998678]
[1751725112860,1e-08,2520.9,2520.8,24.0845946]
[1751725114776,1e-08,2520.9,2520.8,14.1655946]
[1751725115178,1e-08,2520.9,2520.8,22.1485946]
[1751725116500,1e-08,2520.9,2520.8,14.1655946]
[1751725116702,1e-08,2520.9,2520.8,22.1485946]
[1751725117393,1e-08,2520.9,2520.8,14.1655946]
[1751725117603,1e-08,2520.9,2520.8,22.1485946]
[1751725117762,0.83290001,2520.9,2520.8,0.001]
[1751725117967,1.8034812,2520.9,2520.8,0.001]
[1751725118163,10.63674342,2520.9,2520.8,0.001]
[1751725118388,10.63674342,2520.9,2520.8,7.984]
[1751725118591,2.0010812,2520.9,2520.8,7.984]
[1751725118778,1.03050001,2520.9,2520.8,11.9509946]
[1751725119092,0.83290001,2520.9,2520.8,11.9509946]
[1751725119291,0.83290001,2520.9,2520.8,12.1485946]
[1751725119501,1e-08,2520.9,2520.8,12.1485946]
[1751725122569,1e-08,2520.9,2520.8,12.1505946]
[1751725127682,1e-08,2520.9,2520.8,4.1655946]
[1751725127882,1e-08,2520.9,2520.8,12.1495946]
[1751725135614,1e-08,2520.9,2520.8,13.83638665]
[1751725138333,1e-08,2520.9,2520.8,14.38638665]
[1751725139716,1e-08,2520.9,2520.8,5.85238665]
[1751725139923,1e-08,2520.9,2520.8,12.1495946]
[1751725142429,1e-08,2520.9,2520.8,12.9824946]
[1751725142732,1e-08,2520.9,2520.8,22.9824946]
[1751725143736,1e-08,2520.9,2520.8,23.5324946]
[1751725143936,0.0363031,2521.2,2521.1,4.79392254]
[1751725144097,0.0363031,2521.2,2521.1,13.69364515]
[1751725144297,0.0363031,2521.2,2521.1,13.85157993]
[1751725145696,0.0363031,2521.2,2521.1,23.85157993]
[1751725147418,0.0383031,2521.2,2521.1,23.85157993]
[1751725149236,0.0431537,2521.7,2521.6,3.96573604]
[1751725149439,0.0431537,2521.7,2521.6,11.94873604]
[1751725149598,0.0431537,2521.7,2521.6,12.14633604]
[1751725157017,0.02,2521.8,2521.6,12.14633604]
[1751725157018,0.02,2521.8,2521.7,14.78217877]
[1751725157216,0.02,2521.8,2521.7,22.76417877]
[1751725157536,0.02,2521.8,2521.7,25.64329823]
[1751725158443,0.02,2521.8,2521.7,26.19329823]
[1751725158935,0.02,2522.1,2521.7,26.19329823]
[1751725158936,1e-08,2522.1,2522.0,14.51510705]
[1751725159139,1e-08,2522.1,2522.0,23.28250705]
[1751725159336,1e-08,2522.2,2522.1,14.51494984]
[1751725159506,1e-08,2522.2,2522.1,18.2295153]
[1751725159705,1e-08,2522.2,2522.1,20.1655153]
[1751725159945,0.0631537,2522.7,2522.1,20.1655153]
[1751725159946,0.0631537,2522.7,2522.6,3.96416395]
[1751725160104,0.0631537,2522.7,2522.6,12.14776395]
[1751725161954,0.0631537,2522.7,2522.6,12.93116395]
[1751725162157,0.0631537,2522.7,2522.6,24.35722134]
[1751725164930,0.0631537,2522.7,2522.6,26.29522134]
[1751725165332,0.02,2522.9,2522.8,13.96384969]
[1751725165633,0.02,2522.9,2522.8,22.69944969]
[1751725165845,0.02,2522.9,2522.8,25.48127281]
[1751725167758,0.02,2522.9,2522.8,17.49327281]
[1751725167965,0.02,2522.9,2522.8,25.48027281]
[1751725168479,1e-08,2522.9,2522.8,25.48027281]
[1751725168685,1e-08,2523.1,2523.0,15.31403547]
[1751725168980,0.01,2523.5,2523.4,4.76340718]
[1751725168981,1e-08,2523.5,2523.4,4.76340718]
[1751725169184,1e-08,2523.5,2523.4,22.99163625]
[1751725169346,1e-08,2523.5,2523.4,22.95200718]
[1751725169546,1e-08,2523.5,2523.4,25.83701175]
[1751725169846,1e-08,2523.5,2523.4,25.03651175]
[1751725172181,1e-08,2523.5,2523.0,7.39265493]
[1751725172182,1e-08,2523.5,2521.0,4.184]
[1751725172398,1e-08,2523.5,2520.4,7.89818114]
[1751725172399,10.0,2521.8,2520.4,7.89818114]
[1751725172572,8.83326222,2520.9,2520.4,0.0577693]
[1751725172752,17.32241718,2520.9,2520.4,0.0577693]
[1751725172946,4.35792727,2520.9,2520.5,8.248]
[1751725173158,3.93524359,2520.9,2520.6,8.248]
[1751725173482,4.6160869,2520.9,2520.5,8.253]
[1751725173681,13.44934912,2520.9,2520.4,0.0577693]
[1751725173878,4.57643724,2520.9,2520.4,0.0577693]
[1751725174080,4.6160869,2520.9,2520.4,0.0577693]
[1751725174260,4.98448802,2520.9,2520.4,0.0577693]
[1751725175551,1.01765078,2520.9,2520.4,0.0577693]
[1751725175771,4.98448802,2520.9,2520.4,0.0577693]
[1751725177183,4.98379107,2520.9,2520.4,0.0577693]
[1751725178458,6.08205366,2520.9,2520.4,0.0577693]
[1751725181367,29.56475462,2520.9,2520.4,0.0577693]